[Event "47th Rilton Cup 2017"]
[Site "?"]
[Date "2018.01.01"]
[Round "5"]
[White "Krasenkow, Michal"]
[Black "Tikkanen, Hans"]
[Result "1-0"]
[ECO "D10"]
[WhiteElo "2671"]
[BlackElo "2515"]
[PlyCount "103"]
[EventDate "2018.??.??"]
[EventType "swiss"]
[EventCountry "SWE"]
[SourceTitle "Stockholm"]
[TimeControl "40/5400+30:1800+30"]
[WhiteClock "0:21:27"]
[BlackClock "0:40:57"]

1. d4 {[%emt 0:00:00]} d5 {[%emt 0:00:31]} 2. c4 {[%emt 0:00:00]} c6 {[%emt 0:00:14]} 3. Nc3 {[%emt 0:00:00]} Nf6 {[%emt 0:00:17]} 4. e3 {[%emt 0:00:00]} Bf5 {[%emt 0:00:15]} 5. cxd5 {[%emt 0:00:04]} cxd5 {[%emt 0:00:07]} 6. Qb3 {[%emt 0:00:03]} Nc6 {[%emt 0:00:11]} 7. Qxb7 {[%emt 0:00:04]} Bd7 {[%emt 0:00:10]} 8. Qb3 {[%emt 0:00:03]} Rb8 {[%emt 0:00:07]} 9. Qd1 {[%emt 0:00:05]} e5 {[%emt 0:00:09]} 10. dxe5 {[%emt 0:00:04]} Nxe5 {[%emt 0:00:10]} 11. Nge2 {[%emt 0:00:03]} Bc5 {[%emt 0:04:56]} 12. Nf4 {[%emt 0:01:21]} Bc6 {[%emt 0:03:12]} 13. Be2 {[%emt 0:00:25]} O-O {[%emt 0:00:35]} 14. O-O {[%emt 0:00:03]} Rb6 {[%emt 0:51:06]} 15. b3 {[%emt 0:34:44]} d4 {[%emt 0:16:07]} 16. exd4 {[%emt 0:00:45]} Bxd4 {[%emt 0:00:02]} 17. Bb2 {[%emt 0:01:18]} Ne4 {[%emt 0:14:40]} 18. Nxe4 {[%emt 0:10:45]} Bxb2 {[%emt 0:00:03]} 19. Qxd8 {[%emt 0:00:14]} Rxd8 {[%emt 0:00:01]} 20. Rad1 {[%emt 0:00:09]} Rbb8 {[%emt 0:03:42]} 21. Nc5 {[%emt 0:04:47]} a5 {[%emt 0:00:34]} 22. Na6 {[%emt 0:05:17]} Rbc8 {[%emt 0:00:40]} 23. Nc7 {[%emt 0:01:39]} Kf8 {[%emt 0:02:53]} 24. Nb5 {[%emt 0:07:33]} Rxd1 {[%emt 0:00:44]} 25. Rxd1 {[%emt 0:00:15]} Bxb5 {[%emt 0:00:05]} 26. Bxb5 {[%emt 0:00:08]} Ke7 {[%emt 0:00:57]} 27. Nd5+ {[%emt 0:05:56]} Ke6 {[%emt 0:00:01]} 28. f4 {[%emt 0:01:28]} Rc1 {[%emt 0:00:27]} 29. Rxc1 {[%emt 0:00:49]} Bxc1 {[%emt 0:00:02]} 30. Nc7+ {[%emt 0:00:15]} Kd6 {[%emt 0:00:01]} 31. Ne8+ {[%emt 0:01:12]} Kc5 {[%emt 0:00:01]} 32. fxe5 {[%emt 0:00:23]} Kxb5 {[%emt 0:00:03]} 33. Nd6+ {[%emt 0:00:33]} Kc5 {[%emt 0:01:32]} 34. Nxf7 {[%emt 0:00:16]} Kd5 {[%emt 0:00:02]} 35. Kf2 {[%emt 0:06:37]} Bb2 {[%emt 0:01:50]} 36. Kf3 {[%emt 0:01:10]} Ke6 {[%emt 0:00:42]} 37. Ng5+ {[%emt 0:02:25]} Kxe5 {[%emt 0:00:20]} 38. Nxh7 {[%emt 0:00:22]} Kf5 {[%emt 0:00:35]} 39. h4 {[%emt 0:00:28]} Bc3 {[%emt 0:00:39]} 40. h5 {[%emt 0:01:48]} Bd2 {[%emt 0:00:38]} 41. g4+ {[%emt 0:31:56]} Ke6 {[%emt 0:03:02]} 42. Ke4 {[%emt 0:00:00]} Bc1 {[%emt 0:00:35]} 43. Nf8+ {[%emt 0:00:00]} Kf6 {[%emt 0:02:36]} 44. Nd7+ {[%emt 0:00:00]} Kg5 {[%emt 0:00:07]} 45. Kf3 {[%emt 0:00:00]} Bf4 {[%emt 0:02:11]} 46. Nc5 {[%emt 0:00:00]} Be5 {[%emt 0:00:55]} 47. a3 {[%emt 0:00:00]} Bb2 {[%emt 0:02:33]} 48. b4 {[%emt 0:00:00]} axb4 {[%emt 0:01:21]} 49. axb4 {[%emt 0:00:00]} g6 {[%emt 0:00:09]} 50. hxg6 {[%emt 0:00:00]} Kxg6 {[%emt 0:00:07]} 51. b5 {[%emt 0:00:00]} Bd4 {[%emt 0:01:06]} 52. Nd7 {[%emt 0:00:00]} 1-0

[Event "47th Rilton Cup 2017"]
[Site "?"]
[Date "2018.01.01"]
[Round "5"]
[White "Grandelius, Nils"]
[Black "Santos Latasa, Jaime"]
[Result "1/2-1/2"]
[ECO "C95"]
[WhiteElo "2647"]
[BlackElo "2536"]
[PlyCount "71"]
[EventDate "2018.??.??"]
[EventType "swiss"]
[EventCountry "SWE"]
[SourceTitle "Stockholm"]
[TimeControl "40/5400+30:1800+30"]
[WhiteClock "0:46:54"]
[BlackClock "0:20:44"]

1. e4 {[%emt 0:00:37]} e5 {[%emt 0:00:00]} 2. Nf3 {[%emt 0:00:12]} Nc6 {[%emt 0:00:00]} 3. Bb5 {[%emt 0:00:10]} a6 {[%emt 0:00:00]} 4. Ba4 {[%emt 0:00:05]} Nf6 {[%emt 0:00:00]} 5. O-O {[%emt 0:01:54]} Be7 {[%emt 0:00:13]} 6. Re1 {[%emt 0:00:16]} b5 {[%emt 0:00:06]} 7. Bb3 {[%emt 0:00:05]} d6 {[%emt 0:00:05]} 8. c3 {[%emt 0:00:25]} O-O {[%emt 0:00:07]} 9. h3 {[%emt 0:00:05]} Nb8 {[%emt 0:00:05]} 10. d4 {[%emt 0:01:25]} Nbd7 {[%emt 0:00:31]} 11. c4 {[%emt 0:01:08]} c6 {[%emt 0:00:23]} 12. Nc3 {[%emt 0:00:29]} b4 {[%emt 0:00:47]} 13. Ne2 {[%emt 0:01:05]} Nxe4 {[%emt 0:04:45]} 14. Qc2 {[%emt 0:00:51]} Ng5 {[%emt 0:07:24]} 15. Bxg5 {[%emt 0:05:22]} Bxg5 {[%emt 0:02:57]} 16. c5 {[%emt 0:16:11]} exd4 {[%emt 0:10:48]} 17. cxd6 {[%emt 0:01:32]} c5 {[%emt 0:01:21]} 18. Ng3 {[%emt 0:05:18]} Bb7 {[%emt 0:06:55]} 19. Nxg5 {[%emt 0:17:21]} Qxg5 {[%emt 0:00:46]} 20. Re7 {[%emt 0:00:07]} Bc6 {[%emt 0:00:21]} 21. Rae1 {[%emt 0:04:39]} Rad8 {[%emt 0:06:32]} 22. Qe2 {[%emt 0:11:14]} Bb5 {[%emt 0:05:02]} 23. Ne4 {[%emt 0:04:13]} Bxe2 {[%emt 0:04:15]} 24. Nxg5 {[%emt 0:00:03]} c4 {[%emt 0:00:08]} 25. R1xe2 {[%emt 0:04:00]} cxb3 {[%emt 0:00:16]} 26. axb3 {[%emt 0:00:01]} Nf6 {[%emt 0:00:35]} 27. Rb7 {[%emt 0:02:37]} Rxd6 {[%emt 0:03:15]} 28. Rxb4 {[%emt 0:00:25]} d3 {[%emt 0:00:35]} 29. Rd2 {[%emt 0:00:11]} h6 {[%emt 0:00:20]} 30. Ne4 {[%emt 0:04:40]} Nxe4 {[%emt 0:00:21]} 31. Rxe4 {[%emt 0:00:03]} Rb8 {[%emt 0:01:07]} 32. b4 {[%emt 0:00:17]} Rdb6 {[%emt 0:00:12]} 33. Rxd3 Rxb4 {[%emt 0:00:07]} 34. Rxb4 {[%emt 0:00:11]} Rxb4 {[%emt 0:00:08]} 35. Ra3 {[%emt 0:00:02]} Rxb2 {[%emt 0:00:09]} 36. Rxa6 {[%emt 0:00:02]} 1/2-1/2

[Event "47th Rilton Cup 2017"]
[Site "?"]
[Date "2018.01.01"]
[Round "5"]
[White "Tari, Aryan"]
[Black "Usmanov, Vasily"]
[Result "1/2-1/2"]
[ECO "C11"]
[WhiteElo "2593"]
[BlackElo "2467"]
[PlyCount "117"]
[EventDate "2018.??.??"]
[EventType "swiss"]
[EventCountry "SWE"]
[SourceTitle "Stockholm"]
[TimeControl "40/5400+30:1800+30"]
[WhiteClock "0:20:59"]
[BlackClock "0:13:13"]

1. e4 {[%emt 0:01:58]} e6 {[%emt 0:00:00]} 2. d4 {[%emt 0:00:17]} d5 {[%emt 0:00:00]} 3. Nc3 {[%emt 0:00:14]} Nf6 {[%emt 0:00:00]} 4. e5 {[%emt 0:00:16]} Nfd7 {[%emt 0:00:00]} 5. f4 {[%emt 0:00:07]} c5 {[%emt 0:00:00]} 6. Nf3 {[%emt 0:00:12]} Nc6 {[%emt 0:00:03]} 7. Be3 {[%emt 0:00:29]} cxd4 {[%emt 0:00:04]} 8. Nxd4 {[%emt 0:00:12]} Bc5 {[%emt 0:00:06]} 9. Qd2 {[%emt 0:00:48]} Bxd4 {[%emt 0:00:12]} 10. Bxd4 {[%emt 0:00:10]} Nxd4 {[%emt 0:00:04]} 11. Qxd4 {[%emt 0:00:13]} Qb6 {[%emt 0:00:03]} 12. Qd2 {[%emt 0:00:12]} Nc5 {[%emt 0:02:20]} 13. O-O-O {[%emt 0:00:51]} Bd7 {[%emt 0:01:35]} 14. Qd4 {[%emt 0:02:13]} Bc6 {[%emt 0:03:04]} 15. h4 {[%emt 0:02:12]} h5 {[%emt 0:01:17]} 16. Rh3 {[%emt 0:10:18]} a5 {[%emt 0:11:45]} 17. a4 {[%emt 0:06:04]} Qb4 {[%emt 0:05:20]} 18. b3 {[%emt 0:11:14]} Qxd4 {[%emt 0:09:01]} 19. Rxd4 {[%emt 0:00:02]} Ke7 {[%emt 0:00:08]} 20. Be2 {[%emt 0:03:17]} Rac8 {[%emt 0:02:46]} 21. Re3 {[%emt 0:00:56]} g6 {[%emt 0:00:19]} 22. Bf3 {[%emt 0:00:46]} Na6 {[%emt 0:01:19]} 23. Ne2 {[%emt 0:03:02]} b5 {[%emt 0:08:53]} 24. axb5 {[%emt 0:03:28]} Bxb5 {[%emt 0:00:06]} 25. Nc3 {[%emt 0:00:57]} Bc6 {[%emt 0:04:50]} 26. Kb2 {[%emt 0:06:23]} Nb4 {[%emt 0:00:30]} 27. Na2 {[%emt 0:04:07]} Nxa2 {[%emt 0:10:14]} 28. Kxa2 {[%emt 0:00:06]} Bb5 {[%emt 0:00:03]} 29. Kb2 {[%emt 0:01:15]} Rc5 {[%emt 0:00:07]} 30. Rc3 {[%emt 0:02:26]} Rxc3 {[%emt 0:00:05]} 31. Kxc3 {[%emt 0:00:05]} Rc8+ {[%emt 0:00:04]} 32. Kb2 {[%emt 0:02:45]} Rc5 {[%emt 0:00:04]} 33. c3 {[%emt 0:01:05]} Rc7 {[%emt 0:00:52]} 34. Bd1 {[%emt 0:01:38]} Rb7 {[%emt 0:03:36]} 35. Kc1 {[%emt 0:04:44]} Rc7 {[%emt 0:03:36]} 36. Kd2 {[%emt 0:01:38]} Rc8 {[%emt 0:00:26]} 37. Bc2 {[%emt 0:01:01]} Rb8 {[%emt 0:00:26]} 38. Kc1 {[%emt 0:01:05]} Rb7 {[%emt 0:05:26]} 39. g3 {[%emt 0:02:44]} Rb8 {[%emt 0:00:48]} 40. Kb2 {[%emt 0:00:57]} Rb7 {[%emt 0:01:31]} 41. Ka3 {[%emt 0:36:29]} Rc7 {[%emt 0:32:14]} 42. Bd3 {[%emt 0:01:00]} Bxd3 {[%emt 0:00:24]} 43. Rxd3 {[%emt 0:00:08]} Rc5 {[%emt 0:00:22]} 44. Kb2 {[%emt 0:01:48]} Kd7 {[%emt 0:04:08]} 45. Rd4 {[%emt 0:01:10]} Kc7 {[%emt 0:00:39]} 46. Ra4 {[%emt 0:04:32]} Rb5 {[%emt 0:02:00]} 47. Kc2 {[%emt 0:00:46]} Kc6 {[%emt 0:00:40]} 48. Ra3 {[%emt 0:00:56]} Rc5 {[%emt 0:01:57]} 49. Kd3 {[%emt 0:00:30]} Kb5 {[%emt 0:00:40]} 50. Ra1 {[%emt 0:01:01]} Rc8 {[%emt 0:00:35]} 51. Rg1 {[%emt 0:00:41]} Kc5 {[%emt 0:00:56]} 52. Ra1 {[%emt 0:00:35]} Kb5 {[%emt 0:00:09]} 53. Kd4 {[%emt 0:00:10]} Rc7 {[%emt 0:00:28]} 54. Ra2 {[%emt 0:00:55]} Rc8 {[%emt 0:00:15]} 55. Rb2 {[%emt 0:00:32]} Rd8 {[%emt 0:00:17]} 56. Rg2 {[%emt 0:00:50]} Rc8 {[%emt 0:00:24]} 57. Ra2 {[%emt 0:00:40]} Rc7 {[%emt 0:00:16]} 58. Rc2 {[%emt 0:00:37]} Rd7 {[%emt 0:00:34]} 59. Ra2 1/2-1/2

[Event "47th Rilton Cup 2017"]
[Site "?"]
[Date "2018.01.01"]
[Round "5"]
[White "Ivanov, Sergey"]
[Black "Golikov, Daniil"]
[Result "1/2-1/2"]
[ECO "A17"]
[WhiteElo "2540"]
[BlackElo "2220"]
[PlyCount "170"]
[EventDate "2018.??.??"]
[EventType "swiss"]
[EventCountry "SWE"]
[SourceTitle "Stockholm"]
[TimeControl "40/5400+30:1800+30"]
[WhiteClock "0:03:04"]
[BlackClock "0:02:28"]

1. Nf3 {[%emt 0:00:00]} Nf6 {[%emt 0:00:00]} 2. c4 {[%emt 0:00:00]} e6 {[%emt 0:00:42]} 3. Nc3 {[%emt 0:00:00]} Bb4 {[%emt 0:01:43]} 4. Qc2 {[%emt 0:00:10]} c5 {[%emt 0:01:19]} 5. a3 {[%emt 0:01:15]} Bxc3 {[%emt 0:00:38]} 6. Qxc3 {[%emt 0:00:09]} Nc6 {[%emt 0:00:16]} 7. e3 {[%emt 0:02:31]} b6 {[%emt 0:02:10]} 8. Be2 {[%emt 0:01:40]} O-O {[%emt 0:02:05]} 9. O-O {[%emt 0:00:45]} Bb7 {[%emt 0:02:28]} 10. b4 {[%emt 0:01:19]} d6 {[%emt 0:05:21]} 11. Bb2 {[%emt 0:02:32]} Qe7 {[%emt 0:04:19]} 12. d4 {[%emt 0:05:42]} Rac8 {[%emt 0:08:27]} 13. bxc5 {[%emt 0:08:14]} bxc5 {[%emt 0:02:30]} 14. dxc5 {[%emt 0:17:39]} dxc5 {[%emt 0:00:15]} 15. Rfd1 {[%emt 0:00:15]} Rfd8 {[%emt 0:02:04]} 16. Rd2 {[%emt 0:03:47]} Rxd2 {[%emt 0:03:29]} 17. Nxd2 {[%emt 0:00:28]} Nb8 {[%emt 0:02:43]} 18. Nb3 {[%emt 0:02:04]} Nbd7 {[%emt 0:00:49]} 19. Rd1 {[%emt 0:03:04]} e5 {[%emt 0:07:23]} 20. Qa5 {[%emt 0:19:22]} a6 {[%emt 0:01:02]} 21. Qd2 {[%emt 0:00:32]} Rb8 {[%emt 0:07:29]} 22. Na5 {[%emt 0:01:28]} Ba8 {[%emt 0:00:45]} 23. f3 {[%emt 0:02:27]} h6 {[%emt 0:04:58]} 24. Bc3 {[%emt 0:01:33]} Rb6 {[%emt 0:03:21]} 25. h3 {[%emt 0:05:28]} Qe8 {[%emt 0:04:01]} 26. Qc2 {[%emt 0:03:10]} Qb8 {[%emt 0:02:09]} 27. Qf5 {[%emt 0:02:46]} Re6 {[%emt 0:03:18]} 28. Rb1 {[%emt 0:03:51]} Qc7 {[%emt 0:00:49]} 29. Qc2 {[%emt 0:00:26]} Rb6 {[%emt 0:01:28]} 30. Rxb6 {[%emt 0:01:08]} Qxb6 {[%emt 0:00:07]} 31. Kf2 {[%emt 0:01:01]} Qd6 {[%emt 0:02:21]} 32. Qd2 {[%emt 0:03:47]} Qxd2 {[%emt 0:01:14]} 33. Bxd2 {[%emt 0:00:06]} Kf8 {[%emt 0:00:50]} 34. g4 {[%emt 0:00:32]} Ke7 {[%emt 0:00:46]} 35. h4 {[%emt 0:00:43]} Ne8 {[%emt 0:05:01]} 36. Bc3 {[%emt 0:02:10]} Nd6 {[%emt 0:01:16]} 37. Kg3 {[%emt 0:01:15]} f6 {[%emt 0:00:53]} 38. Nb3 {[%emt 0:01:15]} Bc6 {[%emt 0:01:58]} 39. Nd2 {[%emt 0:00:22]} Nf8 {[%emt 0:01:57]} 40. f4 {[%emt 0:01:10]} exf4+ {[%emt 0:02:15]} 41. exf4 {[%emt 0:30:25]} Ne6 {[%emt 0:33:16]} 42. f5 {[%emt 0:00:00]} Nd8 {[%emt 0:00:00]} 43. Kf4 {[%emt 0:00:00]} N8f7 {[%emt 0:00:00]} 44. Bd3 {[%emt 0:00:00]} Bg2 {[%emt 0:00:00]} 45. a4 {[%emt 0:00:00]} Bc6 {[%emt 0:00:00]} 46. a5 {[%emt 0:00:00]} Kd7 {[%emt 0:00:00]} 47. Nf1 {[%emt 0:00:00]} Ba4 {[%emt 0:00:00]} 48. Ne3 {[%emt 0:00:00]} Bc6 {[%emt 0:00:00]} 49. Bc2 {[%emt 0:00:00]} Kd8 {[%emt 0:00:32]} 50. Bd3 {[%emt 0:00:00]} Kd7 {[%emt 0:00:19]} 51. Nf1 {[%emt 0:00:00]} Ba4 {[%emt 0:00:16]} 52. Ng3 {[%emt 0:00:00]} Ke7 {[%emt 0:03:52]} 53. Nh5 {[%emt 0:00:00]} Kf8 {[%emt 0:00:20]} 54. Ke3 {[%emt 0:00:00]} Bb3 {[%emt 0:03:26]} 55. Nf4 {[%emt 0:00:00]} Ne5 {[%emt 0:04:12]} 56. Bxe5 {[%emt 0:00:00]} fxe5 {[%emt 0:00:01]} 57. Ng6+ {[%emt 0:00:14]} Ke8 {[%emt 0:00:10]} 58. Nxe5 {[%emt 0:00:10]} Nb7 {[%emt 0:00:27]} 59. Ke4 {[%emt 0:02:43]} Nxa5 {[%emt 0:00:54]} 60. Kd5 {[%emt 0:00:12]} Nb7 {[%emt 0:00:25]} 61. Kc6 {[%emt 0:01:05]} Nd8+ {[%emt 0:00:22]} 62. Kxc5 {[%emt 0:00:50]} a5 {[%emt 0:00:15]} 63. Kb5 {[%emt 0:02:12]} a4 {[%emt 0:00:57]} 64. Kb4 {[%emt 0:00:15]} Ke7 {[%emt 0:01:42]} 65. c5 {[%emt 0:02:28]} Kf6 {[%emt 0:01:30]} 66. Nd7+ {[%emt 0:00:09]} Ke7 {[%emt 0:00:05]} 67. Bb5 {[%emt 0:00:20]} Bc2 {[%emt 0:01:31]} 68. Ne5 {[%emt 0:00:47]} h5 {[%emt 0:00:28]} 69. Bxa4 {[%emt 0:00:44]} Bxa4 {[%emt 0:00:30]} 70. Kxa4 {[%emt 0:00:07]} Kf6 {[%emt 0:00:07]} 71. Nd7+ {[%emt 0:01:59]} Ke7 {[%emt 0:00:01]} 72. Nb6 {[%emt 0:02:11]} hxg4 {[%emt 0:00:44]} 73. Nd5+ {[%emt 0:00:04]} Kf7 {[%emt 0:01:27]} 74. Kb5 {[%emt 0:00:12]} g3 {[%emt 0:00:13]} 75. Nf4 {[%emt 0:00:42]} Kf6 {[%emt 0:00:56]} 76. Nh5+ {[%emt 0:00:48]} Kxf5 {[%emt 0:00:05]} 77. Nxg3+ {[%emt 0:00:05]} Kg4 {[%emt 0:00:03]} 78. Ne2 {[%emt 0:00:45]} Ne6 {[%emt 0:01:34]} 79. c6 {[%emt 0:00:09]} Kf3 {[%emt 0:00:16]} 80. Kc4 {[%emt 0:02:06]} Kxe2 {[%emt 0:00:18]} 81. Kd5 {[%emt 0:00:06]} Nc7+ {[%emt 0:00:14]} 82. Kd6 {[%emt 0:01:12]} Na6 {[%emt 0:00:04]} 83. Ke7 {[%emt 0:00:34]} Kf3 {[%emt 0:01:01]} 84. Kf7 {[%emt 0:00:15]} Kg4 {[%emt 0:00:09]} 85. Kxg7 {[%emt 0:00:07]} Kxh4 {[%emt 0:00:05]} 1/2-1/2

[Event "47th Rilton Cup 2017"]
[Site "?"]
[Date "2018.01.01"]
[Round "5"]
[White "Das, Sayantan"]
[Black "Chigaev, Maksim"]
[Result "1/2-1/2"]
[ECO "C84"]
[WhiteElo "2442"]
[BlackElo "2555"]
[PlyCount "146"]
[EventDate "2018.??.??"]
[EventType "swiss"]
[EventCountry "SWE"]
[SourceTitle "Stockholm"]
[TimeControl "40/5400+30:1800+30"]
[WhiteClock "0:16:38"]
[BlackClock "0:01:42"]

1. e4 {[%emt 0:03:25]} e5 {[%emt 0:00:00]} 2. Nf3 {[%emt 0:00:22]} Nc6 {[%emt 0:00:00]} 3. Bb5 {[%emt 0:00:09]} a6 {[%emt 0:00:00]} 4. Ba4 {[%emt 0:00:19]} Nf6 {[%emt 0:00:00]} 5. O-O {[%emt 0:00:12]} Be7 {[%emt 0:00:02]} 6. d3 {[%emt 0:01:32]} d6 {[%emt 0:00:37]} 7. c4 {[%emt 0:00:28]} O-O {[%emt 0:00:30]} 8. Nc3 {[%emt 0:00:14]} Bg4 {[%emt 0:10:43]} 9. h3 {[%emt 0:04:54]} Bxf3 {[%emt 0:03:39]} 10. Qxf3 {[%emt 0:04:05]} Nd4 {[%emt 0:01:51]} 11. Qd1 {[%emt 0:11:44]} c6 12. Ne2 Nxe2+ {[%emt 0:02:50]} 13. Qxe2 {[%emt 0:00:33]} Nd7 {[%emt 0:00:43]} 14. Be3 {[%emt 0:11:12]} Bg5 {[%emt 0:01:27]} 15. Bc2 {[%emt 0:14:08]} Bxe3 {[%emt 0:01:47]} 16. fxe3 {[%emt 0:00:22]} a5 {[%emt 0:12:06]} 17. Rab1 {[%emt 0:03:40]} g6 {[%emt 0:04:16]} 18. b3 {[%emt 0:02:07]} Kg7 {[%emt 0:04:34]} 19. Qd2 {[%emt 0:03:15]} Qg5 {[%emt 0:08:27]} 20. Rf3 {[%emt 0:01:59]} b5 {[%emt 0:05:26]} 21. cxb5 {[%emt 0:04:20]} cxb5 {[%emt 0:00:07]} 22. a3 {[%emt 0:05:26]} Nc5 {[%emt 0:13:16]} 23. b4 {[%emt 0:09:41]} axb4 {[%emt 0:01:03]} 24. Qxb4 {[%emt 0:00:43]} Qd8 {[%emt 0:10:53]} 25. d4 {[%emt 0:06:07]} Ne6 {[%emt 0:00:44]} 26. dxe5 {[%emt 0:02:53]} dxe5 {[%emt 0:00:26]} 27. Rd1 {[%emt 0:01:40]} Qa5 {[%emt 0:03:42]} 28. Bb3 {[%emt 0:05:53]} Qxb4 {[%emt 0:02:04]} 29. axb4 {[%emt 0:00:01]} Ng5 {[%emt 0:00:06]} 30. Rff1 {[%emt 0:00:18]} Ra3 {[%emt 0:00:44]} 31. Bd5 {[%emt 0:02:53]} Rxe3 {[%emt 0:00:23]} 32. Rde1 {[%emt 0:00:19]} Rxe1 {[%emt 0:04:40]} 33. Rxe1 {[%emt 0:00:01]} Rd8 {[%emt 0:00:40]} 34. Rc1 {[%emt 0:00:58]} Ne6 {[%emt 0:03:40]} 35. Bxe6 {[%emt 0:00:33]} fxe6 {[%emt 0:00:03]} 36. Rc5 {[%emt 0:00:15]} Kf6 {[%emt 0:00:19]} 37. Rxb5 {[%emt 0:00:38]} Rd4 {[%emt 0:00:04]} 38. Rb7 {[%emt 0:00:19]} h5 {[%emt 0:00:26]} 39. Rb8 {[%emt 0:00:46]} Rxe4 {[%emt 0:00:14]} 40. Kf2 {[%emt 0:00:23]} h4 {[%emt 0:03:46]} 41. Rf8+ {[%emt 0:11:06]} Kg5 {[%emt 0:00:59]} 42. Rb8 {[%emt 0:04:22]} Rc4 {[%emt 0:00:57]} 43. b5 {[%emt 0:02:42]} Rb4 {[%emt 0:04:56]} 44. Ke3 {[%emt 0:02:45]} e4 {[%emt 0:00:23]} 45. b6 {[%emt 0:02:03]} Kf5 {[%emt 0:00:22]} 46. b7 {[%emt 0:01:49]} Ke5 {[%emt 0:00:11]} 47. Kf2 {[%emt 0:00:57]} Rb2+ {[%emt 0:01:04]} 48. Kf1 {[%emt 0:03:47]} g5 {[%emt 0:01:10]} 49. Ke1 {[%emt 0:02:34]} e3 {[%emt 0:00:20]} 50. Kf1 {[%emt 0:01:40]} Ke4 {[%emt 0:02:16]} 51. Re8 {[%emt 0:01:09]} Rxb7 {[%emt 0:00:40]} 52. Rxe6+ {[%emt 0:00:02]} Kf4 {[%emt 0:01:22]} 53. Rf6+ {[%emt 0:00:05]} Kg3 {[%emt 0:03:43]} 54. Rf5 {[%emt 0:00:48]} g4 {[%emt 0:01:34]} 55. hxg4 {[%emt 0:00:45]} Rb1+ {[%emt 0:01:12]} 56. Ke2 {[%emt 0:00:01]} Kxg2 {[%emt 0:00:59]} 57. g5 {[%emt 0:01:00]} Rb4 {[%emt 0:03:07]} 58. Kxe3 {[%emt 0:02:00]} h3 {[%emt 0:00:39]} 59. g6 {[%emt 0:00:19]} Rg4 {[%emt 0:01:55]} 60. Rf2+ {[%emt 0:00:11]} Kg1 {[%emt 0:00:25]} 61. Kf3 {[%emt 0:00:37]} Rxg6 {[%emt 0:00:32]} 62. Ra2 {[%emt 0:00:07]} Rg2 {[%emt 0:00:39]} 63. Ra1+ {[%emt 0:00:56]} Kh2 {[%emt 0:00:04]} 64. Ra8 {[%emt 0:00:35]} Rg3+ {[%emt 0:00:25]} 65. Kf2 {[%emt 0:00:07]} Rg7 {[%emt 0:00:08]} 66. Rh8 {[%emt 0:00:33]} Rf7+ {[%emt 0:00:50]} 67. Ke2 {[%emt 0:00:05]} Rf4 {[%emt 0:01:19]} 68. Rg8 {[%emt 0:00:32]} Ra4 {[%emt 0:00:10]} 69. Kf2 {[%emt 0:00:23]} Ra2+ {[%emt 0:00:14]} 70. Kf1 {[%emt 0:00:32]} Rg2 {[%emt 0:00:25]} 71. Rf8 {[%emt 0:00:31]} Kh1 {[%emt 0:00:08]} 72. Rf3 {[%emt 0:00:38]} h2 {[%emt 0:00:07]} 73. Rf8 {[%emt 0:00:20]} Rf2+ {[%emt 0:00:19]} 1/2-1/2

[Event "47th Rilton Cup 2017"]
[Site "?"]
[Date "2018.01.01"]
[Round "5"]
[White "Lobanov, Sergei"]
[Black "Kulaots, Kaido"]
[Result "1/2-1/2"]
[ECO "B06"]
[WhiteElo "2441"]
[BlackElo "2579"]
[PlyCount "96"]
[EventDate "2018.??.??"]
[EventType "swiss"]
[EventCountry "SWE"]
[SourceTitle "Stockholm"]
[TimeControl "40/5400+30:1800+30"]
[WhiteClock "0:21:28"]
[BlackClock "0:11:23"]

1. e4 {[%emt 0:00:00]} g6 {[%emt 0:00:00]} 2. d4 {[%emt 0:00:00]} Bg7 {[%emt 0:00:00]} 3. Nc3 {[%emt 0:00:00]} c6 {[%emt 0:00:18]} 4. Nf3 {[%emt 0:00:12]} d6 {[%emt 0:00:56]} 5. h3 {[%emt 0:02:52]} Nf6 {[%emt 0:00:27]} 6. Be3 {[%emt 0:01:18]} O-O {[%emt 0:04:38]} 7. Bd3 {[%emt 0:08:18]} Nbd7 {[%emt 0:08:51]} 8. Qe2 {[%emt 0:06:22]} e5 {[%emt 0:02:58]} 9. dxe5 {[%emt 0:03:07]} dxe5 {[%emt 0:00:26]} 10. Nd2 {[%emt 0:29:46]} Qe7 {[%emt 0:04:24]} 11. Nb3 {[%emt 0:01:03]} Rd8 {[%emt 0:12:49]} 12. g3 {[%emt 0:00:04]} b5 {[%emt 0:13:18]} 13. a4 {[%emt 0:00:51]} b4 {[%emt 0:04:16]} 14. Nb1 {[%emt 0:00:50]} Nf8 {[%emt 0:04:10]} 15. N1d2 {[%emt 0:00:52]} Ne6 {[%emt 0:01:49]} 16. Bc4 {[%emt 0:06:45]} c5 {[%emt 0:10:57]} 17. Bxe6 {[%emt 0:11:18]} Bxe6 {[%emt 0:00:07]} 18. Nxc5 {[%emt 0:01:16]} Rac8 {[%emt 0:00:50]} 19. Qb5 {[%emt 0:05:27]} Rxd2 {[%emt 0:08:56]} 20. Kxd2 {[%emt 0:05:07]} Rxc5 {[%emt 0:00:31]} 21. Bxc5 {[%emt 0:00:03]} Nxe4+ {[%emt 0:00:29]} 22. Ke2 {[%emt 0:00:05]} Nxc5 {[%emt 0:00:44]} 23. Qxb4 {[%emt 0:00:23]} h5 {[%emt 0:04:22]} 24. Ra3 {[%emt 0:01:44]} e4 {[%emt 0:02:03]} 25. a5 {[%emt 0:01:17]} Qc7 {[%emt 0:01:17]} 26. Rc3 {[%emt 0:01:55]} Bxc3 {[%emt 0:02:44]} 27. Qxc3 {[%emt 0:00:16]} Qc6 {[%emt 0:01:26]} 28. Rd1 {[%emt 0:02:39]} Qb5+ {[%emt 0:00:14]} 29. Ke3 {[%emt 0:00:30]} Nd7 {[%emt 0:00:21]} 30. Rd4 {[%emt 0:01:26]} Bf5 {[%emt 0:07:28]} 31. b4 {[%emt 0:06:52]} Kh7 {[%emt 0:00:38]} 32. Qc4 {[%emt 0:00:25]} Qa4 {[%emt 0:01:00]} 33. Qxf7+ {[%emt 0:00:23]} Kh6 {[%emt 0:00:06]} 34. Kd2 {[%emt 0:02:04]} e3+ {[%emt 0:01:44]} 35. Kxe3 {[%emt 0:00:03]} Qxc2 {[%emt 0:00:25]} 36. Qc4 {[%emt 0:00:45]} Qb1 {[%emt 0:00:41]} 37. Rd2 {[%emt 0:01:18]} Qe1+ {[%emt 0:01:28]} 38. Re2 {[%emt 0:00:39]} Qd1 39. Rd2 {[%emt 0:00:31]} Qe1+ {[%emt 0:00:55]} 40. Re2 {[%emt 0:00:03]} Qa1 {[%emt 0:00:37]} 41. Qf4+ {[%emt 0:30:45]} Kh7 {[%emt 0:30:17]} 42. Qd4 {[%emt 0:00:26]} Qc1+ {[%emt 0:00:00]} 43. Kf3 {[%emt 0:00:00]} Qc6+ {[%emt 0:00:00]} 44. Kf4 {[%emt 0:00:00]} Qc7+ {[%emt 0:00:00]} 45. Ke3 {[%emt 0:00:00]} Qc1+ {[%emt 0:00:00]} 46. Kf3 {[%emt 0:00:00]} Qc6+ {[%emt 0:00:00]} 47. Kf4 {[%emt 0:00:00]} Qc7+ {[%emt 0:00:00]} 48. Ke3 {[%emt 0:00:00]} Qc1+ {[%emt 0:00:00] Ke4} 1/2-1/2